[Event "Mistrzostwa Polski Juniorek Młodszych "]
[Site "Suwałki, Poland"]
[Date "????.??.??"]
[Round "1.7"]
[White "Gorecka, Zuzanna"]
[Black "Loboda, Hanna"]
[Result "0-1"]
[WhiteElo "1858"]
[BlackElo "1548"]
[PlyCount "84"]
[TimeControl "90/40+15:0"]
[WhiteClock "0:17:42"]
[BlackClock "0:15:17"]

1. d4 {[%emt 0:00:00]} Nf6 {[%emt 0:00:00]} 2. c4 {[%emt 0:00:00]} g6 {[%emt 0:
00:00]} 3. Nf3 {[%emt 0:00:00]} Bg7 {[%emt 0:00:00]} 4. g3 {[%emt 0:00:00]} O-O
{[%emt 0:00:00]} 5. Bg2 {[%emt 0:00:00]} d6 {[%emt 0:00:00]} 6. Nc3 {[%emt 0:
00:00]} Nbd7 {[%emt 0:00:00]} 7. O-O {[%emt 0:00:00]} e5 {[%emt 0:00:00]} 8. e4
{[%emt 0:00:00]} Ne8 {[%emt 0:00:00]} 9. d5 {[%emt 0:00:00]} f5 {[%emt 0:00:00]
} 10. b4 {[%emt 0:00:00]} f4 {[%emt 0:00:00]} 11. Ba3 {[%emt 0:00:00]} Ndf6 {
[%emt 0:00:00]} 12. c5 {[%emt 0:00:00]} h6 {[%emt 0:00:00]} 13. h4 {[%emt 0:00:
00]} Nh5 {[%emt 0:00:00]} 14. Kh2 {[%emt 0:00:00]} Nef6 {[%emt 0:00:00]} 15.
Qe1 {[%emt 0:00:00]} g5 {[%emt 0:00:00]} 16. hxg5 {[%emt 0:00:00]} hxg5 {
[%emt 0:00:00]} 17. Nd2 {[%emt 0:00:00]} Ng4+ {[%emt 0:00:00]} 18. Kg1 {
[%emt 0:00:00]} Qf6 {[%emt 0:00:00]} 19. Nb5 {[%emt 0:00:00]} f3 {[%emt 0:00:
00]} 20. Bxf3 {[%emt 0:00:00]} Qh6 {[%emt 0:00:00]} 21. Bxg4 {[%emt 0:00:00]}
Bxg4 {[%emt 0:00:00]} 22. Qe3 {[%emt 0:00:00]} Rf7 {[%emt 0:00:00]} 23. Nc3 {
[%emt 0:00:00]} Raf8 {[%emt 0:00:00]} 24. Nd1 {[%emt 0:00:00]} Bf3 {[%emt 0:02:
29]} 25. Nxf3 {[%emt 0:02:46]} Rxf3 {[%emt 0:00:00]} 26. Qe1 {[%emt 0:02:30]}
Nxg3 {[%emt 0:01:03]} 27. fxg3 {[%emt 0:00:31]} Rxf1+ {[%emt 0:00:00]} 28. Qxf1
{[%emt 0:00:00]} Rxf1+ {[%emt 0:00:00]} 29. Kxf1 {[%emt 0:00:00]} Qh1+ {
[%emt 0:00:00]} 30. Kf2 {[%emt 0:00:20]} g4 {[%emt 0:00:00]} 31. Bb2 {[%emt 0:
01:28]} Qf3+ {[%emt 0:00:00]} 32. Kg1 {[%emt 0:00:25]} Qxg3+ {[%emt 0:00:00]}
33. Kf1 {[%emt 0:00:17]} Qh3+ {[%emt 0:00:00]} 34. Ke1 {[%emt 0:00:15]} g3 {
[%emt 0:00:00]} 35. Ne3 {[%emt 0:00:21]} g2 {[%emt 0:00:00]} 36. Kf2 {[%emt 0:
00:02]} Bf6 {[%emt 0:00:21]} 37. Rg1 {[%emt 0:00:16]} Qh4+ {[%emt 0:01:25]} 38.
Kxg2 {[%emt 0:00:24]} Qxe4+ {[%emt 0:00:06]} 39. Kf2+ {[%emt 0:00:04]} Kf7 {
[%emt 0:00:38]} 40. cxd6 {[%emt 0:00:00]} cxd6 {[%emt 0:00:00]} 41. Rg4 {
[%emt 0:00:00]} Qb1 {[%emt 0:00:00]} 42. Nc4 {[%emt 0:00:00]} b5 {[%emt 0:00:
00]} 0-1

[Event "Mistrzostwa Polski Juniorek Młodszych "]
[Site "Suwałki, Poland"]
[Date "????.??.??"]
[Round "1.17"]
[White "Pajak, Patrycja"]
[Black "Wisniewska, Blanka"]
[Result "1-0"]
[WhiteElo "1734"]
[BlackElo "1503"]
[PlyCount "73"]
[TimeControl "90/40+15:0"]
[WhiteClock "0:03:00"]
[BlackClock "0:08:49"]

1. e4 {[%emt 0:00:00]} c5 {[%emt 0:00:00]} 2. Nf3 {[%emt 0:00:00]} e6 {[%emt 0:
00:00]} 3. d4 {[%emt 0:00:00]} cxd4 {[%emt 0:00:00]} 4. Nxd4 {[%emt 0:00:00]}
a6 {[%emt 0:00:00]} 5. Bd3 {[%emt 0:00:00]} Nf6 {[%emt 0:00:00]} 6. O-O {
[%emt 0:00:00]} Qc7 {[%emt 0:00:00]} 7. f4 {[%emt 0:00:00]} d6 {[%emt 0:00:00]}
8. Kh1 {[%emt 0:00:00]} Be7 {[%emt 0:00:00]} 9. Nd2 {[%emt 0:00:00]} Nbd7 {
[%emt 0:00:00]} 10. N2f3 {[%emt 0:00:00]} b5 {[%emt 0:00:00]} 11. Qe2 {[%emt 0:
00:00]} Bb7 {[%emt 0:00:00]} 12. e5 {[%emt 0:00:00]} dxe5 {[%emt 0:00:00]} 13.
fxe5 {[%emt 0:00:00]} Nd5 {[%emt 0:00:00]} 14. a3 {[%emt 0:00:00]} h6 {[%emt 0:
00:00]} 15. Bd2 {[%emt 0:00:00]} Bc5 {[%emt 0:00:00]} 16. Rae1 {[%emt 0:00:00]}
Qb6 {[%emt 0:00:00]} 17. c3 {[%emt 0:00:00]} Nb8 {[%emt 0:00:00]} 18. Qf2 {
[%emt 0:00:00]} Qc7 {[%emt 0:00:00]} 19. Qg3 {[%emt 0:00:00]} Nc6 {[%emt 0:00:
00]} 20. Nxc6 {[%emt 0:00:00]} Bxc6 {[%emt 0:00:00]} 21. c4 {[%emt 0:00:00]}
Nb6 {[%emt 0:00:00]} 22. cxb5 {[%emt 0:00:00]} Bxb5 {[%emt 0:00:00]} 23. Bxb5+
{[%emt 0:00:00]} axb5 {[%emt 0:00:00]} 24. Qxg7 {[%emt 0:00:00]} O-O-O {
[%emt 0:00:00]} 25. b4 {[%emt 0:00:00]} Nd5 {[%emt 0:00:00]} 26. Qg4 {[%emt 0:
00:00]} Rdg8 {[%emt 0:00:00]} 27. Qe4 {[%emt 0:00:00]} h5 {[%emt 0:00:00]} 28.
Rc1 {[%emt 0:00:00]} Rg4 {[%emt 0:00:49]} 29. Qe2 {[%emt 0:00:00]} Rc4 {
[%emt 0:02:01]} 30. bxc5 {[%emt 0:00:00]} Qxc5 {[%emt 0:00:06]} 31. Rxc4 {
[%emt 0:00:00]} bxc4 {[%emt 0:00:00]} 32. Bb4 {[%emt 0:00:00]} Qb6 {[%emt 0:02:
34]} 33. Qxc4+ {[%emt 0:00:00]} Kd7 {[%emt 0:00:00]} 34. Ng5 {[%emt 0:00:19]}
f5 {[%emt 0:00:23]} 35. exf6 {[%emt 0:00:00]} Rc8 {[%emt 0:00:17]} 36. Qd3 {
[%emt 0:00:27]} Rg8 {[%emt 0:00:30]} 37. f7 {[%emt 0:00:20]} 1-0

[Event "Mistrzostwa Polski Juniorek Młodszych "]
[Site "Suwałki, Poland"]
[Date "????.??.??"]
[Round "1.19"]
[White "Opala, Natalia"]
[Black "Kalata, Julia"]
[Result "1/2-1/2"]
[WhiteElo "1716"]
[BlackElo "1501"]
[PlyCount "94"]
[TimeControl "90/40+15:0"]
[WhiteClock "0:27:53"]
[BlackClock "0:06:45"]

1. e4 {[%emt 0:00:00]} e5 {[%emt 0:00:00]} 2. Nf3 {[%emt 0:00:11]} Nc6 {
[%emt 0:00:01]} 3. Bb5 {[%emt 0:00:00]} a6 {[%emt 0:00:00]} 4. Ba4 {[%emt 0:00:
00]} Nf6 {[%emt 0:00:00]} 5. O-O {[%emt 0:00:00]} b5 {[%emt 0:00:00]} 6. Bb3 {
[%emt 0:00:00]} Bc5 {[%emt 0:00:00]} 7. Re1 {[%emt 0:00:00]} d6 {[%emt 0:00:00]
} 8. c3 {[%emt 0:00:00]} h6 {[%emt 0:00:00]} 9. h3 {[%emt 0:00:00]} O-O {
[%emt 0:00:00]} 10. d4 {[%emt 0:00:00]} Bb6 {[%emt 0:00:00]} 11. a4 {[%emt 0:
00:00]} Bb7 {[%emt 0:00:00]} 12. axb5 {[%emt 0:00:00]} axb5 {[%emt 0:00:00]}
13. Rxa8 {[%emt 0:00:00]} Bxa8 {[%emt 0:00:00]} 14. Na3 {[%emt 0:00:00]} b4 {
[%emt 0:00:00]} 15. Nc4 {[%emt 0:00:00]} Ba7 {[%emt 0:00:00]} 16. dxe5 {
[%emt 0:00:00]} dxe5 {[%emt 0:00:00]} 17. Qxd8 {[%emt 0:00:00]} Rxd8 {[%emt 0:
00:00]} 18. Ncxe5 {[%emt 0:00:00]} Nxe5 {[%emt 0:00:00]} 19. Nxe5 {[%emt 0:00:
00]} Nxe4 {[%emt 0:00:00]} 20. Be3 {[%emt 0:00:00]} Bxe3 {[%emt 0:00:00]} 21.
Rxe3 {[%emt 0:01:32]} Nd6 {[%emt 0:00:00]} 22. Rd3 {[%emt 0:00:00]} Kh7 {
[%emt 0:00:00]} 23. cxb4 {[%emt 0:00:00]} f6 {[%emt 0:00:00]} 24. Nc4 {[%emt 0:
00:00]} Bc6 {[%emt 0:00:00]} 25. Nxd6 {[%emt 0:00:00]} cxd6 {[%emt 0:00:00]}
26. Bf7 {[%emt 0:00:00]} d5 {[%emt 0:00:00]} 27. b5 {[%emt 0:01:35]} Bxb5 {
[%emt 0:00:00]} 28. Rxd5 {[%emt 0:00:00]} Rxd5 {[%emt 0:00:00]} 29. Bxd5 {
[%emt 0:00:00]} Kg6 {[%emt 0:00:00]} 30. b3 {[%emt 0:02:41]} Kf5 {[%emt 0:00:
00]} 31. f3 {[%emt 0:00:13]} Ke5 {[%emt 0:00:00]} 32. Bf7 {[%emt 0:00:22]} g5 {
[%emt 0:00:00]} 33. Kf2 {[%emt 0:00:12]} f5 {[%emt 0:00:00]} 34. g3 {[%emt 0:
01:06]} f4 {[%emt 0:00:00]} 35. gxf4+ {[%emt 0:00:57]} Kxf4 {[%emt 0:00:00]}
36. Bc4 {[%emt 0:00:16]} Bc6 {[%emt 0:00:00]} 37. Be2 {[%emt 0:00:18]} h5 {
[%emt 0:00:00]} 38. b4 {[%emt 0:00:07]} Bd7 {[%emt 0:00:00]} 39. Kg2 {[%emt 0:
00:23]} Ke3 {[%emt 0:00:00]} 40. Ba6 {[%emt 0:00:16]} Bc6 {[%emt 0:00:00]} 41.
Kg3 {[%emt 0:00:13]} Bxf3 {[%emt 0:01:06]} 42. Bc8 {[%emt 0:00:16]} h4+ {
[%emt 0:00:00]} 43. Kh2 {[%emt 0:00:00]} Be2 {[%emt 0:00:00]} 44. Bd7 {[%emt 0:
00:00]} Bd1 {[%emt 0:00:00]} 45. b5 {[%emt 0:00:00]} Be2 {[%emt 0:00:00]} 46.
b6 {[%emt 0:00:00]} Ba6 {[%emt 0:00:00]} 47. Bc6 {[%emt 0:00:00]} Kf4 {[%emt 0:
00:00]} 1/2-1/2

[Event "Mistrzostwa Polski Juniorek Młodszych "]
[Site "Suwałki, Poland"]
[Date "????.??.??"]
[Round "1.23"]
[White "Kaczmarczyk, Dominika"]
[Black "Lapczynska, Magdalena"]
[Result "1-0"]
[WhiteElo "1644"]
[BlackElo "1479"]
[PlyCount "67"]
[TimeControl "90/40+15:0"]
[WhiteClock "0:14:59"]
[BlackClock "0:48:53"]

1. e4 {[%emt 0:00:02]} c5 {[%emt 0:00:00]} 2. Nc3 {[%emt 0:00:00]} Nc6 {
[%emt 0:00:00]} 3. Bb5 {[%emt 0:00:00]} g6 {[%emt 0:00:00]} 4. Bxc6 {[%emt 0:
00:00]} bxc6 {[%emt 0:00:00]} 5. d3 {[%emt 0:00:00]} Bg7 {[%emt 0:00:00]} 6. f4
{[%emt 0:00:00]} d6 {[%emt 0:00:00]} 7. Nf3 {[%emt 0:00:00]} Nf6 {[%emt 0:00:
00]} 8. O-O {[%emt 0:00:00]} O-O {[%emt 0:00:00]} 9. Qe1 {[%emt 0:00:00]} e5 {
[%emt 0:00:00]} 10. fxe5 {[%emt 0:00:00]} dxe5 {[%emt 0:00:00]} 11. b3 {
[%emt 0:00:00]} Bg4 {[%emt 0:00:00]} 12. Be3 {[%emt 0:00:00]} Bxf3 {[%emt 0:00:
00]} 13. Rxf3 {[%emt 0:00:00]} Qd6 {[%emt 0:00:00]} 14. Na4 {[%emt 0:00:00]}
Nd7 {[%emt 0:00:00]} 15. Qf2 {[%emt 0:00:00]} Rab8 {[%emt 0:00:00]} 16. Nxc5 {
[%emt 0:00:00]} a5 {[%emt 0:00:00]} 17. Rf1 {[%emt 0:00:00]} f5 {[%emt 0:00:00]
} 18. exf5 {[%emt 0:00:00]} Rxf5 {[%emt 0:00:00]} 19. Rxf5 {[%emt 0:00:00]}
gxf5 {[%emt 0:00:00]} 20. Nxd7 {[%emt 0:00:00]} Qxd7 {[%emt 0:00:00]} 21. Qxf5
{[%emt 0:00:00]} Qxf5 {[%emt 0:00:00]} 22. Rxf5 {[%emt 0:00:00]} Ra8 {[%emt 0:
00:00]} 23. Bc5 {[%emt 0:00:00]} a4 {[%emt 0:00:00]} 24. b4 {[%emt 0:00:00]}
Re8 {[%emt 0:00:00]} 25. Rf2 {[%emt 0:00:00]} e4 {[%emt 0:00:00]} 26. Re2 {
[%emt 0:00:00]} e3 {[%emt 0:00:00]} 27. Rxe3 {[%emt 0:00:00]} Rxe3 {[%emt 0:00:
00]} 28. Bxe3 {[%emt 0:00:00]} Bc3 {[%emt 0:00:00]} 29. Bc5 {[%emt 0:00:00]}
Kf7 {[%emt 0:00:00]} 30. Kf2 {[%emt 0:00:00]} Ke6 {[%emt 0:00:00]} 31. Ke3 {
[%emt 0:00:00]} Kd5 {[%emt 0:00:00]} 32. g4 {[%emt 0:00:00]} Be1 {[%emt 0:00:
00]} 33. c4+ {[%emt 0:00:00]} Ke6 {[%emt 0:00:00]} 34. Ke4 {[%emt 0:00:00]} 1-0

[Event "Mistrzostwa Polski Juniorek Młodszych "]
[Site "Suwałki, Poland"]
[Date "????.??.??"]
[Round "1.24"]
[White "Mucha, Gabriela"]
[Black "Cudyk, Oliwia"]
[Result "0-1"]
[WhiteElo "1475"]
[BlackElo "1643"]
[PlyCount "40"]
[TimeControl "90/40+15:0"]
[WhiteClock "0:08:05"]
[BlackClock "0:00:34"]

1. e4 {[%emt 0:00:00]} c5 {[%emt 0:00:00]} 2. Nc3 {[%emt 0:00:00]} Nc6 {
[%emt 0:00:00]} 3. Nf3 {[%emt 0:00:00]} d6 {[%emt 0:00:00]} 4. d4 {[%emt 0:00:
00]} cxd4 {[%emt 0:00:00]} 5. Nxd4 {[%emt 0:00:00]} Nf6 {[%emt 0:00:00]} 6. Bc4
{[%emt 0:00:00]} e6 {[%emt 0:00:00]} 7. O-O {[%emt 0:00:00]} Be7 {[%emt 0:00:
00]} 8. Be3 {[%emt 0:00:00]} O-O {[%emt 0:00:00]} 9. Re1 {[%emt 0:00:00]} a6 {
[%emt 0:06:47]} 10. a4 {[%emt 0:00:00]} Bd7 {[%emt 0:00:00]} 11. h3 {[%emt 0:
00:00]} Rc8 {[%emt 0:00:00]} 12. Be2 {[%emt 0:00:00]} Nxd4 {[%emt 0:00:00]} 13.
Bxd4 {[%emt 0:00:00]} Bc6 {[%emt 0:00:00]} 14. Bf3 {[%emt 0:07:41]} Qa5 {
[%emt 0:00:00]} 15. Qd3 {[%emt 0:00:00]} Rfd8 {[%emt 0:00:00]} 16. Qe3 {
[%emt 0:00:00]} Nd7 {[%emt 0:00:00]} 17. Qe2 {[%emt 0:00:00]} Ne5 {[%emt 0:08:
44]} 18. Bg4 {[%emt 0:14:02]} Bf6 {[%emt 0:00:00]} 19. Qd1 {[%emt 0:00:00]} Qb4
{[%emt 0:00:00]} 20. Ne2 {[%emt 0:00:00]} Bxe4 {[%emt 0:00:00]} 0-1

[Event "Mistrzostwa Polski Juniorek Młodszych "]
[Site "Suwałki, Poland"]
[Date "????.??.??"]
[Round "1.25"]
[White "Meshkova, Aleksandra"]
[Black "Witkowska, Amelia"]
[Result "1-0"]
[WhiteElo "1599"]
[BlackElo "1463"]
[PlyCount "129"]
[TimeControl "90/40+15:0"]
[WhiteClock "0:37:22"]
[BlackClock "0:26:43"]

1. d4 {[%emt 0:00:00]} Nf6 {[%emt 0:00:00]} 2. c4 {[%emt 0:00:00]} g6 {[%emt 0:
00:00]} 3. Nc3 {[%emt 0:00:00]} Bg7 {[%emt 0:00:00]} 4. e4 {[%emt 0:00:00]} d6
{[%emt 0:00:00]} 5. Nf3 {[%emt 0:00:00]} O-O {[%emt 0:00:00]} 6. Be2 {[%emt 0:
00:00]} Na6 {[%emt 0:00:00]} 7. O-O {[%emt 0:00:00]} e5 {[%emt 0:00:00]} 8. a3
{[%emt 0:00:00]} exd4 {[%emt 0:00:00]} 9. Nxd4 {[%emt 0:00:00]} Nc5 {[%emt 0:
00:00]} 10. f3 {[%emt 0:00:00]} a5 {[%emt 0:00:00]} 11. Be3 {[%emt 0:00:00]}
Ne6 {[%emt 0:00:00]} 12. Qd2 {[%emt 0:00:00]} Nxd4 {[%emt 0:00:00]} 13. Bxd4 {
[%emt 0:00:00]} c6 {[%emt 0:00:00]} 14. Be3 {[%emt 0:00:00]} Be6 {[%emt 0:00:
00]} 15. Rad1 {[%emt 0:00:00]} Ne8 {[%emt 0:00:00]} 16. Bc5 {[%emt 0:00:00]}
Bf6 {[%emt 0:00:00]} 17. Bd4 {[%emt 0:00:00]} Bxd4+ {[%emt 0:00:00]} 18. Qxd4 {
[%emt 0:00:00]} c5 {[%emt 0:00:00]} 19. Qe3 {[%emt 0:00:00]} Qe7 {[%emt 0:00:
00]} 20. f4 {[%emt 0:00:00]} f6 {[%emt 0:00:00]} 21. Qg3 {[%emt 0:00:00]} f5 {
[%emt 0:00:00]} 22. Qe3 {[%emt 0:00:00]} fxe4 {[%emt 0:00:00]} 23. Qxe4 {
[%emt 0:00:00]} Qd7 {[%emt 0:00:00]} 24. Nd5 {[%emt 0:00:00]} Bxd5 {[%emt 0:00:
00]} 25. Qxd5+ {[%emt 0:00:00]} Qf7 {[%emt 0:00:00]} 26. Qd3 {[%emt 0:00:00]}
Rd8 {[%emt 0:00:00]} 27. Bf3 {[%emt 0:00:00]} Qg7 {[%emt 0:00:00]} 28. Qc2 {
[%emt 0:00:00]} Kh8 {[%emt 0:00:00]} 29. Be4 {[%emt 0:00:00]} Nf6 {[%emt 0:00:
00]} 30. Bd5 {[%emt 0:00:00]} Qh6 {[%emt 0:00:00]} 31. Qc3 {[%emt 0:00:00]} Qg7
{[%emt 0:00:00]} 32. g3 {[%emt 0:00:00]} Nxd5 {[%emt 0:00:00]} 33. Qxg7+ {
[%emt 0:00:00]} Kxg7 {[%emt 0:00:00]} 34. Rxd5 {[%emt 0:00:00]} Rfe8 {[%emt 0:
00:00]} 35. Rfd1 {[%emt 0:00:00]} Re6 {[%emt 0:00:00]} 36. Rxc5 {[%emt 0:00:00]
} dxc5 {[%emt 0:00:00]} 37. Rxd8 {[%emt 0:00:00]} Rb6 {[%emt 0:00:00]} 38. Rd5
{[%emt 0:00:00]} Rxb2 {[%emt 0:00:00]} 39. Rxc5 {[%emt 0:00:00]} b6 {[%emt 0:
00:00]} 40. Rb5 {[%emt 0:00:00]} Rc2 {[%emt 0:00:00]} 41. Rxb6 {[%emt 0:00:00]}
Rxc4 {[%emt 0:00:00]} 42. Rb5 {[%emt 0:00:00]} Ra4 {[%emt 0:00:00]} 43. Rb3 {
[%emt 0:00:00]} Rc4 {[%emt 0:00:00]} 44. h3 {[%emt 0:00:00]} Kh6 {[%emt 0:00:
00]} 45. Kf2 {[%emt 0:00:00]} a4 {[%emt 0:00:00]} 46. Rd3 {[%emt 0:00:00]} g5 {
[%emt 0:00:00]} 47. f5 {[%emt 0:00:00]} Kg7 {[%emt 0:00:00]} 48. g4 {[%emt 0:
00:00]} Kf6 {[%emt 0:00:00]} 49. Kf3 {[%emt 0:00:00]} h5 {[%emt 0:00:00]} 50.
Rd6+ {[%emt 0:00:00]} Ke7 {[%emt 0:00:00]} 51. Re6+ {[%emt 0:00:00]} Kf7 {
[%emt 0:00:00]} 52. gxh5 {[%emt 0:00:00]} Rf4+ {[%emt 0:00:00]} 53. Kg3 {
[%emt 0:00:00]} Rxf5 {[%emt 0:00:00]} 54. Re4 {[%emt 0:00:00]} Ra5 {[%emt 0:00:
00]} 55. h4 {[%emt 0:00:00]} Kf6 {[%emt 0:00:00]} 56. Kg4 {[%emt 0:00:00]} gxh4
{[%emt 0:00:00]} 57. Kxh4 {[%emt 0:00:00]} Kf5 {[%emt 0:00:00]} 58. Rg4 {
[%emt 0:00:00]} Kf6 {[%emt 0:00:00]} 59. h6 {[%emt 0:00:00]} Ra7 {[%emt 0:00:
00]} 60. Kg3 {[%emt 0:00:00]} Rh7 {[%emt 0:00:00]} 61. Rxa4 {[%emt 0:00:00]}
Ke5 {[%emt 0:00:00]} 62. Ra6 {[%emt 0:00:00]} Kd5 {[%emt 0:00:00]} 63. Kg4 {
[%emt 0:00:00]} Kc5 {[%emt 0:00:00]} 64. Kg5 {[%emt 0:00:00]} Kb5 {[%emt 0:00:
00]} 65. Ra8 {[%emt 0:00:00]} 1-0

[Event "Mistrzostwa Polski Juniorek Młodszych "]
[Site "Suwałki, Poland"]
[Date "????.??.??"]
[Round "1.4"]
[White "Dabrowska, Ewa"]
[Black "Ejsymont, Blanka"]
[Result "0-1"]
[WhiteElo "1583"]
[BlackElo "1910"]
[PlyCount "82"]
[TimeControl "90/40+15:0"]
[WhiteClock "0:41:34"]
[BlackClock "0:29:27"]

1. d4 {[%emt 0:00:00]} Nf6 {[%emt 0:00:00]} 2. Nc3 {[%emt 0:00:00]} d5 {
[%emt 0:00:00]} 3. Bf4 {[%emt 0:00:00]} c5 {[%emt 0:00:00]} 4. e3 {[%emt 0:00:
00]} a6 {[%emt 0:00:00]} 5. h3 {[%emt 0:00:00]} Nc6 {[%emt 0:00:00]} 6. Nf3 {
[%emt 0:00:00]} Bf5 {[%emt 0:00:00]} 7. a3 {[%emt 0:00:00]} e6 {[%emt 0:00:00]}
8. Nh4 {[%emt 0:00:00]} Bg6 {[%emt 0:00:00]} 9. Nxg6 {[%emt 0:00:00]} hxg6 {
[%emt 0:00:00]} 10. Be2 {[%emt 0:00:00]} Nh5 {[%emt 0:00:00]} 11. Bh2 {[%emt 0:
00:00]} cxd4 {[%emt 0:00:00]} 12. exd4 {[%emt 0:00:00]} Qb6 {[%emt 0:00:00]}
13. Na4 {[%emt 0:00:00]} Qxd4 {[%emt 0:00:00]} 14. c3 {[%emt 0:00:00]} Qa7 {
[%emt 0:00:00]} 15. b3 {[%emt 0:00:00]} b5 {[%emt 0:00:00]} 16. Nb2 {[%emt 0:
00:00]} Nf6 {[%emt 0:00:00]} 17. Bf3 {[%emt 0:00:00]} Bc5 {[%emt 0:00:00]} 18.
Nd3 {[%emt 0:00:00]} Bb6 {[%emt 0:00:00]} 19. O-O {[%emt 0:00:00]} O-O {
[%emt 0:00:00]} 20. Ne5 {[%emt 0:00:00]} Rfc8 {[%emt 0:00:00]} 21. Rc1 {
[%emt 0:00:00]} Bc7 {[%emt 0:00:00]} 22. Nxc6 {[%emt 0:00:00]} Bxh2+ {[%emt 0:
00:00]} 23. Kxh2 {[%emt 0:00:00]} Rxc6 {[%emt 0:00:06]} 24. Qd2 {[%emt 0:00:00]
} Qc7+ {[%emt 0:00:00]} 25. Kg1 {[%emt 0:00:00]} Rc8 {[%emt 0:00:00]} 26. b4 {
[%emt 0:00:00]} Rxc3 {[%emt 0:00:00]} 27. Rxc3 {[%emt 0:00:00]} Qxc3 {[%emt 0:
00:00]} 28. Qa2 {[%emt 0:00:00]} Qc2 {[%emt 0:00:00]} 29. Qa1 {[%emt 0:00:00]}
Rc3 {[%emt 0:00:00]} 30. Rb1 {[%emt 0:00:00]} Rxa3 {[%emt 0:00:00]} 31. Qxa3 {
[%emt 0:00:00]} Qxb1+ {[%emt 0:00:00]} 32. Kh2 {[%emt 0:00:00]} d4 {[%emt 0:00:
00]} 33. Be2 {[%emt 0:00:00]} Qe1 {[%emt 0:00:00]} 34. Qf3 {[%emt 0:00:00]} Nd5
{[%emt 0:00:00]} 35. Kg3 {[%emt 0:00:00]} Qxb4 {[%emt 0:00:00]} 36. Bd1 {
[%emt 0:00:00]} a5 {[%emt 0:00:00]} 37. Bb3 {[%emt 0:00:00]} Qc3 {[%emt 0:00:
00]} 38. Qxc3 {[%emt 0:00:00]} Nxc3 {[%emt 0:00:00]} 39. Bc2 {[%emt 0:00:00]}
a4 {[%emt 0:00:00]} 40. Kf3 {[%emt 0:00:00]} b4 {[%emt 0:00:00]} 41. Bd3 {
[%emt 0:00:00]} b3 {[%emt 0:00:00]} 0-1

[Event "Mistrzostwa Polski Juniorek Młodszych "]
[Site "Suwałki, Poland"]
[Date "????.??.??"]
[Round "1.3"]
[White "Rzadkowska, Kaja"]
[Black "Jankowska, Aniela"]
[Result "1-0"]
[WhiteElo "1914"]
[BlackElo "1584"]
[PlyCount "51"]
[TimeControl "90/40+15:0"]
[WhiteClock "0:12:45"]
[BlackClock "0:13:31"]

1. e4 {[%emt 0:00:00]} c5 {[%emt 0:00:00]} 2. Nf3 {[%emt 0:00:10]} e6 {[%emt 0:
00:00]} 3. d4 {[%emt 0:00:00]} cxd4 {[%emt 0:00:00]} 4. Nxd4 {[%emt 0:00:00]}
a6 {[%emt 0:00:00]} 5. Bd3 {[%emt 0:00:00]} Nf6 {[%emt 0:00:00]} 6. O-O {
[%emt 0:00:00]} Qc7 {[%emt 0:00:00]} 7. Qe2 {[%emt 0:00:00]} d6 {[%emt 0:00:00]
} 8. c4 {[%emt 0:00:00]} Be7 {[%emt 0:00:00]} 9. f4 {[%emt 0:00:00]} Nbd7 {
[%emt 0:00:00]} 10. b3 {[%emt 0:00:00]} O-O {[%emt 0:00:00]} 11. Kh1 {[%emt 0:
00:00]} b6 {[%emt 0:00:00]} 12. Bb2 {[%emt 0:00:00]} Bb7 {[%emt 0:00:00]} 13.
Nc3 {[%emt 0:00:00]} Nc5 {[%emt 0:00:00]} 14. Bc2 {[%emt 0:00:00]} Rfd8 {
[%emt 0:00:00]} 15. b4 {[%emt 0:00:00]} Ncd7 {[%emt 0:00:00]} 16. Bd3 {[%emt 0:
00:00]} Rac8 {[%emt 0:00:00]} 17. Rae1 {[%emt 0:00:00]} Bf8 {[%emt 0:00:00]}
18. Nf3 {[%emt 0:00:00]} d5 {[%emt 0:00:00]} 19. cxd5 {[%emt 0:00:00]} exd5 {
[%emt 0:00:00]} 20. e5 {[%emt 0:00:00]} Nh5 {[%emt 0:00:00]} 21. Bxh7+ {
[%emt 0:00:00]} Kh8 {[%emt 0:00:00]} 22. Ng5 {[%emt 0:00:00]} g6 {[%emt 0:00:
00]} 23. e6 {[%emt 0:00:00]} Nxf4 {[%emt 0:00:00]} 24. Rxf4 {[%emt 0:00:00]}
Bg7 {[%emt 0:00:00]} 25. Rxf7 {[%emt 0:00:00]} Bxc3 {[%emt 0:00:00]} 26. Bxg6 {
[%emt 0:00:00]} 1-0

[Event "Mistrzostwa Polski Juniorek Młodszych "]
[Site "Suwałki, Poland"]
[Date "????.??.??"]
[Round "1.20"]
[White "Diakun, Zofia"]
[Black "Tkacz, Katarzyna"]
[Result "0-1"]
[WhiteElo "1501"]
[BlackElo "1686"]
[PlyCount "116"]
[TimeControl "90/40+15:0"]
[WhiteClock "0:40:17"]
[BlackClock "0:18:03"]

1. d4 {[%emt 0:00:00]} Nf6 {[%emt 0:00:00]} 2. c4 {[%emt 0:00:00]} g6 {[%emt 0:
00:00]} 3. Nc3 {[%emt 0:00:00]} d5 {[%emt 0:00:00]} 4. cxd5 {[%emt 0:00:00]}
Nxd5 {[%emt 0:00:00]} 5. e4 {[%emt 0:00:00]} Nxc3 {[%emt 0:00:00]} 6. bxc3 {
[%emt 0:00:00]} Bg7 {[%emt 0:00:00]} 7. Nf3 {[%emt 0:00:00]} c5 {[%emt 0:00:00]
} 8. Be3 {[%emt 0:00:00]} Nc6 {[%emt 0:00:00]} 9. h3 {[%emt 0:00:00]} O-O {
[%emt 0:00:00]} 10. Be2 {[%emt 0:00:00]} b6 {[%emt 0:00:00]} 11. O-O {[%emt 0:
00:00]} Bb7 {[%emt 0:00:00]} 12. d5 {[%emt 0:00:00]} Ne5 {[%emt 0:00:00]} 13.
Nxe5 {[%emt 0:00:00]} Bxe5 {[%emt 0:00:00]} 14. c4 {[%emt 0:00:00]} Bxa1 {
[%emt 0:00:00]} 15. Qxa1 {[%emt 0:00:00]} f6 {[%emt 0:00:00]} 16. Bh6 {[%emt 0:
00:00]} Qd6 {[%emt 0:00:00]} 17. f4 {[%emt 0:00:00]} e5 {[%emt 0:00:00]} 18. f5
{[%emt 0:00:00]} Rfd8 {[%emt 0:00:00]} 19. Qe1 {[%emt 0:00:00]} Qe7 {[%emt 0:
00:00]} 20. Qg3 {[%emt 0:00:00]} Qf7 {[%emt 0:00:00]} 21. Bh5 {[%emt 0:00:00]}
Qe7 {[%emt 0:00:00]} 22. fxg6 {[%emt 0:00:00]} Kh8 {[%emt 0:00:00]} 23. g7+ {
[%emt 0:00:00]} Kg8 {[%emt 0:00:00]} 24. Qh4 {[%emt 0:00:00]} Rd6 {[%emt 0:00:
00]} 25. g4 {[%emt 0:00:00]} Ba6 {[%emt 0:00:00]} 26. Qg3 {[%emt 0:00:00]} Bxc4
{[%emt 0:00:00]} 27. Rf2 {[%emt 0:00:00]} Bb5 {[%emt 0:00:00]} 28. g5 {[%emt 0:
00:00]} Be8 {[%emt 0:00:00]} 29. Bxe8 {[%emt 0:00:00]} Rxe8 {[%emt 0:00:00]}
30. gxf6 {[%emt 0:00:00]} Rxf6 {[%emt 0:00:00]} 31. Qg5 {[%emt 0:04:03]} Rxf2 {
[%emt 0:00:00]} 32. Qxe7 {[%emt 0:00:00]} Rxe7 {[%emt 0:00:00]} 33. Kxf2 {
[%emt 0:00:00]} Rd7 {[%emt 0:00:00]} 34. Ke2 {[%emt 0:00:00]} Rd6 {[%emt 0:00:
00]} 35. Bd2 {[%emt 0:00:26]} Kxg7 {[%emt 0:00:00]} 36. a4 {[%emt 0:00:27]} Rg6
{[%emt 0:00:00]} 37. Bc3 {[%emt 0:00:18]} Kf6 {[%emt 0:00:00]} 38. Be1 {
[%emt 0:00:52]} Rg2+ {[%emt 0:00:00]} 39. Kd3 {[%emt 0:00:07]} Rg1 {[%emt 0:00:
00]} 40. Kd2 {[%emt 0:00:00]} Rg2+ {[%emt 0:00:00]} 41. Kd3 {[%emt 0:00:00]}
Ra2 {[%emt 0:00:00]} 42. a5 {[%emt 0:00:00]} b5 {[%emt 0:00:00]} 43. h4 {
[%emt 0:00:00]} Ra3+ {[%emt 0:00:00]} 44. Kc2 {[%emt 0:00:00]} b4 {[%emt 0:00:
00]} 45. Kb2 {[%emt 0:00:00]} Re3 {[%emt 0:00:00]} 46. Bd2 {[%emt 0:00:00]}
Rxe4 {[%emt 0:00:00]} 47. Bg5+ {[%emt 0:00:00]} Kf5 {[%emt 0:00:00]} 48. Be7 {
[%emt 0:00:00]} Rd4 {[%emt 0:00:00]} 49. Bxc5 {[%emt 0:00:00]} Rxd5 {[%emt 0:
00:00]} 50. Bxb4 {[%emt 0:00:00]} Rb5 {[%emt 0:00:00]} 51. Kc3 {[%emt 0:00:00]}
Rxb4 {[%emt 0:00:00]} 52. Kxb4 {[%emt 0:00:00]} e4 {[%emt 0:00:00]} 53. Kc3 {
[%emt 0:00:00]} Kf4 {[%emt 0:00:00]} 54. Kd2 {[%emt 0:00:00]} Kf3 {[%emt 0:00:
00]} 55. Ke1 {[%emt 0:00:00]} h5 {[%emt 0:00:00]} 56. Kf1 {[%emt 0:00:00]} a6 {
[%emt 0:00:00]} 57. Ke1 {[%emt 0:00:00]} Ke3 {[%emt 0:00:00]} 58. Kf1 {[%emt 0:
00:00]} Kd2 {[%emt 0:00:00]} 0-1